[Event "Titled Tuesday Blitz January 17 Early 2023"]
[White "Rengifo Blancas, Renzo Jhonathan"]
[Black "Subelj, Jan"]
[WhiteFideId "3807185"]
[BlackFideId "14618583"]
[WhiteElo "2131"]
[BlackElo "2513"]
[Result "0-1"]
[Round "04"]
[TimeControl "180+2"]
[Date "2023.01.17"]
[WhiteClock "0:00:09"]
[BlackClock "0:00:05"]

1. d4 {[%clk 0:02:49]}  b6 {[%clk 0:03:00]} 2. e4 {[%clk 0:02:48]}  Bb7 {[%clk 0:03:01]} 3. Bd3 {[%clk 0:02:48]}  f5 {[%clk 0:02:55]} 4. Nc3 {[%clk 0:02:45]}  fxe4 {[%clk 0:02:38]} 5. Bxe4 {[%clk 0:02:45]}  Bxe4 {[%clk 0:02:37]} 6. Nxe4 {[%clk 0:02:46]}  Nf6 {[%clk 0:02:36]} 7. Qf3 {[%clk 0:02:44]}  Nc6 {[%clk 0:02:35]} 8. c3 {[%clk 0:02:43]}  e6 {[%clk 0:02:30]} 9. Ne2 {[%clk 0:02:43]}  Be7 {[%clk 0:02:29]} 10. Nxf6+ {[%clk 0:02:39]}  Bxf6 {[%clk 0:02:20]} 11. Bf4 {[%clk 0:02:22]}  O-O {[%clk 0:02:11]} 12. Qg3 {[%clk 0:02:18]}  Bh4 {[%clk 0:02:10]} 13. Qg4 {[%clk 0:02:17]}  Bf6 {[%clk 0:01:55]} 14. h4 {[%clk 0:02:16]}  e5 {[%clk 0:01:41]} 15. Be3 {[%clk 0:02:12]}  exd4 {[%clk 0:01:37]} 16. cxd4 {[%clk 0:02:10]}  Nb4 {[%clk 0:01:35]} 17. Qe4 {[%clk 0:01:47]}  Re8 {[%clk 0:01:30]} 18. Qb1 {[%clk 0:01:47]}  Qe7 {[%clk 0:01:24]} 19. a3 {[%clk 0:01:44]}  Nd5 {[%clk 0:01:24]} 20. Qa2 {[%clk 0:01:45]}  Qf7 {[%clk 0:01:23]} 21. Rh3 {[%clk 0:01:39]}  Re7 {[%clk 0:01:12]} 22. O-O-O {[%clk 0:01:19]}  Rae8 {[%clk 0:00:56]} 23. Rd3 {[%clk 0:01:17]}  Kh8 {[%clk 0:00:44]} 24. Nc3 {[%clk 0:01:08]}  Nxc3 {[%clk 0:00:33]} 25. Qxf7 {[%clk 0:01:07]}  Ne2+ {[%clk 0:00:34]} 26. Kd2 {[%clk 0:01:06]}  Rxf7 {[%clk 0:00:32]} 27. Kxe2 {[%clk 0:01:07]}  d5 {[%clk 0:00:19]} 28. Kd2 {[%clk 0:01:06]}  Rd7 {[%clk 0:00:17]} 29. Bg5 {[%clk 0:01:02]}  Rf8 {[%clk 0:00:08]} 30. Bxf6 {[%clk 0:00:54]}  Rxf6 {[%clk 0:00:08]} 31. Rhf3 {[%clk 0:00:53]}  Rdf7 {[%clk 0:00:07]} 32. Rxf6 {[%clk 0:00:51]}  Rxf6 {[%clk 0:00:08]} 33. f3 {[%clk 0:00:47]}  Kg8 {[%clk 0:00:09]} 34. Ke3 {[%clk 0:00:46]}  Kf7 {[%clk 0:00:08]} 35. Rc3 {[%clk 0:00:46]}  c6 {[%clk 0:00:09]} 36. g4 {[%clk 0:00:46]}  Ke7 {[%clk 0:00:09]} 37. h5 {[%clk 0:00:45]}  Kd7 {[%clk 0:00:10]} 38. b4 {[%clk 0:00:45]}  Re6+ {[%clk 0:00:10]} 39. Kf4 {[%clk 0:00:45]}  Re1 {[%clk 0:00:10]} 40. Kf5 {[%clk 0:00:43]}  Rd1 {[%clk 0:00:09]} 41. h6 {[%clk 0:00:35]}  gxh6 {[%clk 0:00:08]} 42. Kf6 {[%clk 0:00:35]}  Rxd4 {[%clk 0:00:08]} 43. Kg7 {[%clk 0:00:35]}  h5 {[%clk 0:00:07]} 44. gxh5 {[%clk 0:00:34]}  Rh4 {[%clk 0:00:07]} 45. h6 {[%clk 0:00:35]}  d4 {[%clk 0:00:07]} 46. Rc1 {[%clk 0:00:24]}  Kd6 {[%clk 0:00:07]} 47. Kxh7 {[%clk 0:00:24]}  c5 {[%clk 0:00:07]} 48. Kg7 {[%clk 0:00:22]}  Kd5 {[%clk 0:00:07]} 49. h7 {[%clk 0:00:22]}  c4 {[%clk 0:00:08]} 50. Rg1 {[%clk 0:00:20]}  Rxh7+ {[%clk 0:00:04]} 51. Kxh7 {[%clk 0:00:20]}  d3 {[%clk 0:00:05]} 52. Kg6 {[%clk 0:00:14]}  c3 {[%clk 0:00:05]} 53. f4 {[%clk 0:00:15]}  d2 {[%clk 0:00:05]} 54. f5 {[%clk 0:00:15]}  c2 {[%clk 0:00:05]} 55. f6 {[%clk 0:00:15]}  d1=Q {[%clk 0:00:05]} 56. Rg5+ {[%clk 0:00:13]}  Ke6 {[%clk 0:00:05]} 57. f7 {[%clk 0:00:12]}  Qd3+ {[%clk 0:00:05]} 58. Kg7 {[%clk 0:00:13]}  Qd4+ {[%clk 0:00:03]} 59. Kg8 {[%clk 0:00:12]}  Qf6 {[%clk 0:00:04]} 60. Rg7 {[%clk 0:00:09]}  c1=Q {[%clk 0:00:03]} 61. f8=Q {[%clk 0:00:09]}  Qxf8+ {[%clk 0:00:04]} 62. Kxf8 {[%clk 0:00:09]}  Qc8# {[%clk 0:00:05]} 0-1


[Site "https://www.chess.com"]

[Event "Titled Tuesday Blitz January 17 Early 2023"]
[White "Sonnenschein, Philipp"]
[Black "Atakhan, Abtin"]
[WhiteFideId "16250877"]
[BlackFideId "22502203"]
[WhiteElo "2224"]
[BlackElo "2422"]
[Result "0-1"]
[Round "04"]
[TimeControl "180+2"]
[Date "2023.01.17"]
[WhiteClock "0:00:09"]
[BlackClock "0:00:05"]

1. d4 {[%clk 0:02:58]}  Nf6 {[%clk 0:03:00]} 2. c4 {[%clk 0:02:57]}  e6 {[%clk 0:03:00]} 3. Nf3 {[%clk 0:02:57]}  d5 {[%clk 0:03:00]} 4. g3 {[%clk 0:02:57]}  Bb4+ {[%clk 0:02:59]} 5. Bd2 {[%clk 0:02:54]}  a5 {[%clk 0:03:00]} 6. Bg2 {[%clk 0:02:52]}  O-O {[%clk 0:02:53]} 7. a3 {[%clk 0:02:48]}  Be7 {[%clk 0:02:45]} 8. Qc2 {[%clk 0:02:48]}  Nc6 {[%clk 0:02:37]} 9. e3 {[%clk 0:02:42]}  a4 {[%clk 0:02:31]} 10. O-O {[%clk 0:02:40]}  Re8 {[%clk 0:02:29]} 11. Nc3 {[%clk 0:02:26]}  Bd7 {[%clk 0:02:28]} 12. Ne5 {[%clk 0:02:23]}  dxc4 {[%clk 0:01:39]} 13. Nxc4 {[%clk 0:02:11]}  Bd6 {[%clk 0:01:29]} 14. Nb5 {[%clk 0:02:06]}  Bf8 {[%clk 0:01:25]} 15. Rfd1 {[%clk 0:01:37]}  Nb4 {[%clk 0:01:22]} 16. Bxb4 {[%clk 0:01:31]}  Bxb5 {[%clk 0:01:11]} 17. Bxf8 {[%clk 0:01:21]}  Rxf8 {[%clk 0:01:12]} 18. Bxb7 {[%clk 0:01:21]}  Rb8 {[%clk 0:01:12]} 19. Bg2 {[%clk 0:01:19]}  Bxc4 {[%clk 0:01:00]} 20. Qxc4 {[%clk 0:01:19]}  Rxb2 {[%clk 0:01:01]} 21. Qxa4 {[%clk 0:01:19]}  Ng4 {[%clk 0:01:02]} 22. Rf1 {[%clk 0:01:16]}  Qf6 {[%clk 0:01:01]} 23. h3 {[%clk 0:01:00]}  Nxf2 {[%clk 0:01:01]} 24. Rac1 {[%clk 0:01:00]}  Nxh3+ {[%clk 0:00:40]} 25. Bxh3 {[%clk 0:00:58]}  Qh6 {[%clk 0:00:39]} 26. Bg2 {[%clk 0:00:39]}  Qxe3+ {[%clk 0:00:38]} 27. Kh1 {[%clk 0:00:39]}  Qh6+ {[%clk 0:00:20]} 28. Kg1 {[%clk 0:00:40]}  Qe3+ {[%clk 0:00:20]} 29. Kh1 {[%clk 0:00:40]}  Qh6+ {[%clk 0:00:20]} 30. Kg1 {[%clk 0:00:40]}  Qd2 {[%clk 0:00:21]} 31. Qc6 {[%clk 0:00:35]}  Qxd4+ {[%clk 0:00:21]} 32. Kh1 {[%clk 0:00:35]}  Qd2 {[%clk 0:00:20]} 33. Rcd1 {[%clk 0:00:29]}  Qh6+ {[%clk 0:00:20]} 34. Kg1 {[%clk 0:00:29]}  Qe3+ {[%clk 0:00:21]} 35. Kh1 {[%clk 0:00:28]}  Qxg3 {[%clk 0:00:20]} 36. Qf3 {[%clk 0:00:26]}  Qh4+ {[%clk 0:00:18]} 37. Kg1 {[%clk 0:00:26]}  h6 {[%clk 0:00:16]} 38. Rd7 {[%clk 0:00:24]}  Qg5 {[%clk 0:00:08]} 39. Rxf7 {[%clk 0:00:21]}  Qxg2+ {[%clk 0:00:06]} 40. Qxg2 {[%clk 0:00:21]}  Rxg2+ {[%clk 0:00:07]} 41. Kxg2 {[%clk 0:00:22]}  Rxf7 {[%clk 0:00:08]} 42. Re1 {[%clk 0:00:15]}  Rf6 {[%clk 0:00:07]} 43. a4 {[%clk 0:00:15]}  Kf7 {[%clk 0:00:07]} 44. Rc1 {[%clk 0:00:14]}  Rf5 {[%clk 0:00:05]} 45. Rxc7+ {[%clk 0:00:14]}  Kf6 {[%clk 0:00:06]} 46. Rc8 {[%clk 0:00:13]}  Ra5 {[%clk 0:00:06]} 47. Rc4 {[%clk 0:00:12]}  Rd5 {[%clk 0:00:05]} 48. Kf3 {[%clk 0:00:12]}  Rd3+ {[%clk 0:00:06]} 49. Kg4 {[%clk 0:00:12]}  Ra3 {[%clk 0:00:07]} 50. Kh5 {[%clk 0:00:11]}  Kf5 {[%clk 0:00:05]} 51. Kh4 {[%clk 0:00:09]}  e5 {[%clk 0:00:06]} 52. Kh5 {[%clk 0:00:09]}  Rh3+ {[%clk 0:00:05]} 0-1


[Site "https://www.chess.com"]

[Event "Titled Tuesday Blitz January 17 Early 2023"]
[White "Dehtiarov, Roman"]
[Black "Zherebtsova, Alexandra"]
[WhiteFideId "14186640"]
[BlackFideId "24129518"]
[WhiteElo "2289"]
[BlackElo "2155"]
[Result "1-0"]
[Round "04"]
[TimeControl "180+2"]
[Date "2023.01.17"]
[WhiteClock "0:00:04"]
[BlackClock "0:00:01"]

1. e4 {[%clk 0:03:00]}  e5 {[%clk 0:02:57]} 2. Nf3 {[%clk 0:03:01]}  Nc6 {[%clk 0:02:55]} 3. Bb5 {[%clk 0:03:01]}  a6 {[%clk 0:02:54]} 4. Ba4 {[%clk 0:03:01]}  Nf6 {[%clk 0:02:54]} 5. O-O {[%clk 0:03:01]}  Be7 {[%clk 0:02:54]} 6. Bxc6 {[%clk 0:03:02]}  dxc6 {[%clk 0:02:53]} 7. Nc3 {[%clk 0:03:02]}  Nd7 {[%clk 0:02:52]} 8. d4 {[%clk 0:03:02]}  exd4 {[%clk 0:02:51]} 9. Qxd4 {[%clk 0:03:03]}  O-O {[%clk 0:02:50]} 10. Rd1 {[%clk 0:03:03]}  Qe8 {[%clk 0:02:40]} 11. Bf4 {[%clk 0:03:01]}  Bf6 {[%clk 0:02:39]} 12. e5 {[%clk 0:02:57]}  Be7 {[%clk 0:02:39]} 13. Ne4 {[%clk 0:02:55]}  Nb6 {[%clk 0:02:29]} 14. c4 {[%clk 0:02:43]}  Bg4 {[%clk 0:02:17]} 15. b3 {[%clk 0:02:40]}  Rd8 {[%clk 0:01:56]} 16. Qe3 {[%clk 0:02:37]}  Rxd1+ {[%clk 0:01:41]} 17. Rxd1 {[%clk 0:02:37]}  Qc8 {[%clk 0:01:40]} 18. h3 {[%clk 0:02:34]}  Bf5 {[%clk 0:01:38]} 19. Ng3 {[%clk 0:02:24]}  Bg6 {[%clk 0:01:28]} 20. Bg5 {[%clk 0:02:07]}  Bxg5 {[%clk 0:01:03]} 21. Nxg5 {[%clk 0:02:07]}  Re8 {[%clk 0:00:55]} 22. f4 {[%clk 0:02:05]}  f6 {[%clk 0:00:49]} 23. Nf3 {[%clk 0:02:04]}  fxe5 {[%clk 0:00:44]} 24. Nxe5 {[%clk 0:02:04]}  Nd7 {[%clk 0:00:41]} 25. Re1 {[%clk 0:01:47]}  Nxe5 {[%clk 0:00:40]} 26. fxe5 {[%clk 0:01:48]}  Qe6 {[%clk 0:00:36]} 27. h4 {[%clk 0:01:12]}  h6 {[%clk 0:00:23]} 28. Qd4 {[%clk 0:01:04]}  b6 {[%clk 0:00:16]} 29. h5 {[%clk 0:00:59]}  Bf7 {[%clk 0:00:15]} 30. Qf4 {[%clk 0:00:55]}  Rd8 {[%clk 0:00:13]} 31. Ne4 {[%clk 0:00:45]}  Bxh5 {[%clk 0:00:07]} 32. Qh4 {[%clk 0:00:40]}  Qe8 {[%clk 0:00:07]} 33. e6 {[%clk 0:00:36]}  Bg6 {[%clk 0:00:07]} 34. e7 {[%clk 0:00:29]}  Rd7 {[%clk 0:00:06]} 35. Nf2 {[%clk 0:00:27]}  Kh7 {[%clk 0:00:06]} 36. Nh3 {[%clk 0:00:25]}  Kg8 {[%clk 0:00:05]} 37. Nf4 {[%clk 0:00:19]}  Bf7 {[%clk 0:00:05]} 38. Nh3 {[%clk 0:00:13]}  Bg6 {[%clk 0:00:04]} 39. Nf2 {[%clk 0:00:11]}  Bf7 {[%clk 0:00:04]} 40. Qe4 {[%clk 0:00:11]}  Bg6 {[%clk 0:00:03]} 41. Qe6+ {[%clk 0:00:10]}  Bf7 {[%clk 0:00:04]} 42. Qe5 {[%clk 0:00:11]}  c5 {[%clk 0:00:03]} 43. Ng4 {[%clk 0:00:09]}  Bg6 {[%clk 0:00:03]} 44. Qe3 {[%clk 0:00:08]}  Bf7 {[%clk 0:00:03]} 45. Qe2 {[%clk 0:00:05]}  Bg6 {[%clk 0:00:03]} 46. Qe3 {[%clk 0:00:05]}  Bf7 {[%clk 0:00:03]} 47. Nf2 {[%clk 0:00:04]}  Bg6 {[%clk 0:00:04]} 48. Qe2 {[%clk 0:00:03]}  Bf7 {[%clk 0:00:04]} 49. Nd3 {[%clk 0:00:03]}  Bg6 {[%clk 0:00:03]} 50. Nf4 {[%clk 0:00:04]}  Bf7 {[%clk 0:00:03]} 51. Qe5 {[%clk 0:00:04]}  Kh7 {[%clk 0:00:02]} 52. Qe4+ {[%clk 0:00:04]}  Kg8 {[%clk 0:00:02]} 53. Qe5 {[%clk 0:00:05]}  Kh7 {[%clk 0:00:02]} 54. g4 {[%clk 0:00:05]}  Kg8 {[%clk 0:00:03]} 55. g5 {[%clk 0:00:06]}  hxg5 {[%clk 0:00:03]} 56. Qxg5 {[%clk 0:00:07]}  Rd4 {[%clk 0:00:03]} 57. Qe5 {[%clk 0:00:06]}  Rd7 {[%clk 0:00:03]} 58. Nd5 {[%clk 0:00:03]}  Bxd5 {[%clk 0:00:01]} 59. cxd5 {[%clk 0:00:04]}  Kf7 {[%clk 0:00:01]} 60. Qe6# {[%clk 0:00:04]} 1-0


[Site "https://www.chess.com"]

[Event "Titled Tuesday Blitz January 17 Early 2023"]
[White "Gressmann, Moritz"]
[Black "Pfreundt, Jakob"]
[WhiteFideId "24695084"]
[BlackFideId "12918156"]
[WhiteElo "2129"]
[BlackElo "2407"]
[Result "0-1"]
[Round "04"]
[TimeControl "180+2"]
[Date "2023.01.17"]
[WhiteClock "0:00:46"]
[BlackClock "0:01:25"]

1. b3 {[%clk 0:03:00]}  e5 {[%clk 0:02:58]} 2. Bb2 {[%clk 0:03:01]}  Nc6 {[%clk 0:02:58]} 3. e3 {[%clk 0:03:01]}  g6 {[%clk 0:02:58]} 4. Nf3 {[%clk 0:03:02]}  Bg7 {[%clk 0:02:57]} 5. d4 {[%clk 0:03:00]}  e4 {[%clk 0:02:56]} 6. Nfd2 {[%clk 0:03:00]}  f5 {[%clk 0:02:56]} 7. c4 {[%clk 0:02:57]}  d6 {[%clk 0:02:55]} 8. Qc2 {[%clk 0:02:53]}  Nf6 {[%clk 0:02:53]} 9. a3 {[%clk 0:02:52]}  O-O {[%clk 0:02:52]} 10. Be2 {[%clk 0:02:53]}  f4 {[%clk 0:02:36]} 11. exf4 {[%clk 0:02:49]}  Bf5 {[%clk 0:02:35]} 12. O-O {[%clk 0:02:32]}  e3 {[%clk 0:02:31]} 13. Qd1 {[%clk 0:02:25]}  exd2 {[%clk 0:02:29]} 14. Nxd2 {[%clk 0:02:26]}  Nh5 {[%clk 0:02:07]} 15. g4 {[%clk 0:02:17]}  Nxf4 {[%clk 0:02:07]} 16. gxf5 {[%clk 0:02:17]}  Qg5+ {[%clk 0:02:08]} 17. Bg4 {[%clk 0:02:17]}  gxf5 {[%clk 0:02:08]} 18. f3 {[%clk 0:01:30]}  fxg4 {[%clk 0:01:55]} 19. fxg4 {[%clk 0:01:24]}  Rae8 {[%clk 0:01:53]} 20. Kh1 {[%clk 0:01:07]}  Re2 {[%clk 0:01:26]} 21. Rxf4 {[%clk 0:01:02]}  Rxd2 {[%clk 0:01:26]} 22. Rxf8+ {[%clk 0:00:45]}  Bxf8 {[%clk 0:01:27]} 23. Qc1 {[%clk 0:00:46]}  Qe3 {[%clk 0:01:25]} 0-1


[Site "https://www.chess.com"]

[Event "Titled Tuesday Blitz January 17 Early 2023"]
[White "Mouhamad, Joachim"]
[Black "Tasev, Dejan"]
[WhiteFideId "656410"]
[BlackFideId "936618"]
[WhiteElo "2238"]
[BlackElo "2205"]
[Result "0-1"]
[Round "04"]
[TimeControl "180+2"]
[Date "2023.01.17"]
[WhiteClock "0:02:32"]
[BlackClock "0:02:45"]

1. e4 {[%clk 0:02:59]}  c5 {[%clk 0:02:58]} 2. Nf3 {[%clk 0:02:53]}  Nc6 {[%clk 0:02:57]} 3. d4 {[%clk 0:02:53]}  cxd4 {[%clk 0:02:57]} 4. Nxd4 {[%clk 0:02:54]}  g6 {[%clk 0:02:58]} 5. c4 {[%clk 0:02:53]}  Bg7 {[%clk 0:02:58]} 6. Be3 {[%clk 0:02:54]}  Nf6 {[%clk 0:02:57]} 7. Nc3 {[%clk 0:02:54]}  d6 {[%clk 0:02:57]} 8. Be2 {[%clk 0:02:54]}  O-O {[%clk 0:02:57]} 9. O-O {[%clk 0:02:54]}  Bd7 {[%clk 0:02:57]} 10. h3 {[%clk 0:02:53]}  a6 {[%clk 0:02:57]} 11. Qd2 {[%clk 0:02:45]}  Rc8 {[%clk 0:02:57]} 12. Rac1 {[%clk 0:02:42]}  Nxd4 {[%clk 0:02:55]} 13. Bxd4 {[%clk 0:02:42]}  Bc6 {[%clk 0:02:55]} 14. Qc2 {[%clk 0:02:32]}  Nd7 {[%clk 0:02:47]} 15. Bg4 {[%clk 0:02:32]}  Bxd4 {[%clk 0:02:45]} 0-1


[Site "https://www.chess.com"]

[Event "Titled Tuesday Blitz January 17 Early 2023"]
[White "Gutkin, Ilya"]
[Black "Ingebretsen, Jens E"]
[WhiteFideId "16203470"]
[BlackFideId "1522965"]
[WhiteElo "2273"]
[BlackElo "2342"]
[Result "1-0"]
[Round "04"]
[TimeControl "180+2"]
[Date "2023.01.17"]
[WhiteClock "0:00:07"]
[BlackClock "0:00:53"]

1. e4 {[%clk 0:03:00]}  e5 {[%clk 0:02:53]} 2. Nf3 {[%clk 0:03:01]}  Nc6 {[%clk 0:02:52]} 3. Bb5 {[%clk 0:03:01]}  a6 {[%clk 0:02:49]} 4. Bxc6 {[%clk 0:03:01]}  dxc6 {[%clk 0:02:49]} 5. Nc3 {[%clk 0:03:02]}  Qf6 {[%clk 0:02:49]} 6. d4 {[%clk 0:03:01]}  exd4 {[%clk 0:02:49]} 7. Qxd4 {[%clk 0:03:02]}  Bg4 {[%clk 0:02:49]} 8. Qxf6 {[%clk 0:02:59]}  Nxf6 {[%clk 0:02:48]} 9. Nd4 {[%clk 0:02:46]}  Bc5 {[%clk 0:02:35]} 10. Nb3 {[%clk 0:02:33]}  Bb4 {[%clk 0:02:29]} 11. f3 {[%clk 0:02:33]}  Be6 {[%clk 0:02:26]} 12. Bd2 {[%clk 0:02:29]}  O-O-O {[%clk 0:02:16]} 13. O-O-O {[%clk 0:02:20]}  c5 {[%clk 0:02:04]} 14. a3 {[%clk 0:02:11]}  c4 {[%clk 0:01:46]} 15. Nd4 {[%clk 0:01:19]}  Rxd4 {[%clk 0:01:31]} 16. axb4 {[%clk 0:01:17]}  Rhd8 {[%clk 0:01:31]} 17. Be3 {[%clk 0:01:13]}  Rxd1+ {[%clk 0:01:30]} 18. Rxd1 {[%clk 0:01:12]}  Rxd1+ {[%clk 0:01:30]} 19. Kxd1 {[%clk 0:01:13]}  b5 {[%clk 0:01:31]} 20. Bd4 {[%clk 0:01:11]}  Kd7 {[%clk 0:01:30]} 21. Bxf6 {[%clk 0:01:02]}  gxf6 {[%clk 0:01:30]} 22. Ne2 {[%clk 0:00:56]}  f5 {[%clk 0:01:20]} 23. e5 {[%clk 0:00:48]}  c5 {[%clk 0:01:18]} 24. c3 {[%clk 0:00:47]}  Kc6 {[%clk 0:01:15]} 25. Nf4 {[%clk 0:00:31]}  Kb6 {[%clk 0:01:13]} 26. Kd2 {[%clk 0:00:30]}  a5 {[%clk 0:01:11]} 27. bxa5+ {[%clk 0:00:25]}  Kxa5 {[%clk 0:01:12]} 28. Nxe6 {[%clk 0:00:18]}  fxe6 {[%clk 0:01:12]} 29. g4 {[%clk 0:00:19]}  fxg4 {[%clk 0:01:08]} 30. fxg4 {[%clk 0:00:20]}  Kb6 {[%clk 0:01:04]} 31. h4 {[%clk 0:00:15]}  Kc6 {[%clk 0:01:05]} 32. Ke3 {[%clk 0:00:10]}  Kd7 {[%clk 0:01:03]} 33. Kf4 {[%clk 0:00:10]}  Ke7 {[%clk 0:01:03]} 34. Kg5 {[%clk 0:00:10]}  Kf7 {[%clk 0:01:00]} 35. Kh6 {[%clk 0:00:10]}  Kg8 {[%clk 0:01:01]} 36. g5 {[%clk 0:00:09]}  b4 {[%clk 0:00:50]} 37. g6 {[%clk 0:00:08]}  bxc3 {[%clk 0:00:46]} 38. bxc3 {[%clk 0:00:08]}  Kh8 {[%clk 0:00:45]} 39. g7+ {[%clk 0:00:06]}  Kg8 {[%clk 0:00:45]} 40. h5 {[%clk 0:00:07]}  Kf7 {[%clk 0:00:43]} 41. Kxh7 {[%clk 0:00:08]}  Ke7 {[%clk 0:00:44]} 42. g8=Q {[%clk 0:00:07]}  Kd7 {[%clk 0:00:45]} 43. Qf7+ {[%clk 0:00:07]}  Kc6 {[%clk 0:00:46]} 44. Qxe6+ {[%clk 0:00:06]}  Kb5 {[%clk 0:00:46]} 45. Kg6 {[%clk 0:00:06]}  Ka5 {[%clk 0:00:47]} 46. Qxc4 {[%clk 0:00:07]}  Kb6 {[%clk 0:00:47]} 47. e6 {[%clk 0:00:06]}  Kc6 {[%clk 0:00:47]} 48. e7 {[%clk 0:00:07]}  Kd7 {[%clk 0:00:48]} 49. Qxc5 {[%clk 0:00:07]}  Ke8 {[%clk 0:00:48]} 50. Kf6 {[%clk 0:00:06]}  Kd7 {[%clk 0:00:49]} 51. e8=Q+ {[%clk 0:00:06]}  Kxe8 {[%clk 0:00:50]} 52. Qa7 {[%clk 0:00:06]}  Kd8 {[%clk 0:00:51]} 53. Ke6 {[%clk 0:00:06]}  Kc8 {[%clk 0:00:52]} 54. Kd6 {[%clk 0:00:06]}  Kd8 {[%clk 0:00:53]} 55. Qa8# {[%clk 0:00:07]} 1-0


[Site "https://www.chess.com"]

[Event "Titled Tuesday Blitz January 17 Early 2023"]
[White "Wilson, Elvin"]
[Black "Kamalidenova, Meruert"]
[WhiteFideId "2014874"]
[BlackFideId "13712802"]
[WhiteElo "2183"]
[BlackElo "2350"]
[Result "0-1"]
[Round "04"]
[TimeControl "180+2"]
[Date "2023.01.17"]
[WhiteClock "0:00:01"]
[BlackClock "0:01:05"]

1. c4 {[%clk 0:03:00]}  Nf6 {[%clk 0:02:57]} 2. g3 {[%clk 0:03:00]}  g6 {[%clk 0:02:55]} 3. Bg2 {[%clk 0:02:59]}  Bg7 {[%clk 0:02:56]} 4. Nc3 {[%clk 0:02:59]}  e5 {[%clk 0:02:56]} 5. e4 {[%clk 0:02:59]}  O-O {[%clk 0:02:55]} 6. Nge2 {[%clk 0:03:00]}  d6 {[%clk 0:02:55]} 7. O-O {[%clk 0:03:00]}  Nc6 {[%clk 0:02:54]} 8. d3 {[%clk 0:03:00]}  Be6 {[%clk 0:02:51]} 9. h3 {[%clk 0:02:48]}  a6 {[%clk 0:02:49]} 10. Be3 {[%clk 0:02:31]}  Qd7 {[%clk 0:02:49]} 11. Kh2 {[%clk 0:02:30]}  Rab8 {[%clk 0:02:41]} 12. Qd2 {[%clk 0:02:23]}  b5 {[%clk 0:02:40]} 13. b3 {[%clk 0:02:24]}  Ne7 {[%clk 0:02:28]} 14. Nd5 {[%clk 0:02:11]}  c6 {[%clk 0:02:23]} 15. Nxf6+ {[%clk 0:02:07]}  Bxf6 {[%clk 0:02:23]} 16. cxb5 {[%clk 0:01:43]}  axb5 {[%clk 0:02:18]} 17. d4 {[%clk 0:01:42]}  exd4 {[%clk 0:02:16]} 18. Bxd4 {[%clk 0:01:37]}  Bxd4 {[%clk 0:02:12]} 19. Nxd4 {[%clk 0:01:36]}  c5 {[%clk 0:02:11]} 20. Nc2 {[%clk 0:01:30]}  Nc6 {[%clk 0:02:09]} 21. Rad1 {[%clk 0:01:27]}  Rfd8 {[%clk 0:02:07]} 22. Ne3 {[%clk 0:01:25]}  Ra8 {[%clk 0:02:04]} 23. e5 {[%clk 0:01:13]}  Nxe5 {[%clk 0:01:41]} 24. f4 {[%clk 0:01:09]}  Nc6 {[%clk 0:01:39]} 25. Nd5 {[%clk 0:01:07]}  Bxd5 {[%clk 0:01:34]} 26. Qxd5 {[%clk 0:01:06]}  Nd4 {[%clk 0:01:32]} 27. Rd2 {[%clk 0:00:32]}  Ra6 {[%clk 0:01:25]} 28. Rfd1 {[%clk 0:00:16]}  Qa7 {[%clk 0:01:09]} 29. b4 {[%clk 0:00:08]}  Nf5 {[%clk 0:01:08]} 30. bxc5 {[%clk 0:00:06]}  Ne3 {[%clk 0:01:07]} 31. Qd3 {[%clk 0:00:02]}  Nxd1 {[%clk 0:01:06]} 32. Rxd1 {[%clk 0:00:02]}  Qxc5 {[%clk 0:01:05]} 33. Bd5 {[%clk 0:00:02]}  Ra3 {[%clk 0:01:05]} 34. f5 {[%clk 0:00:01]}  Rxd3 {[%clk 0:01:04]} 35. Rxd3 {[%clk 0:00:01]}  Qc2+ {[%clk 0:01:05]} 0-1


[Site "https://www.chess.com"]

[Event "Titled Tuesday Blitz January 17 Early 2023"]
[White "Jiganchine, Roman"]
[Black "Jimenez Almeida, Luis David"]
[WhiteFideId "2603667"]
[BlackFideId "22242244"]
[WhiteElo "2205"]
[BlackElo "2242"]
[Result "0-1"]
[Round "04"]
[TimeControl "180+2"]
[Date "2023.01.17"]
[WhiteClock "0:00:16"]
[BlackClock "0:00:43"]

1. e4 {[%clk 0:02:59]}  Nf6 {[%clk 0:02:54]} 2. e5 {[%clk 0:02:56]}  Nd5 {[%clk 0:02:54]} 3. c4 {[%clk 0:02:56]}  Nb6 {[%clk 0:02:54]} 4. c5 {[%clk 0:02:56]}  Nd5 {[%clk 0:02:54]} 5. Nc3 {[%clk 0:02:56]}  e6 {[%clk 0:02:52]} 6. d4 {[%clk 0:02:56]}  Nxc3 {[%clk 0:02:50]} 7. bxc3 {[%clk 0:02:56]}  d6 {[%clk 0:02:51]} 8. cxd6 {[%clk 0:02:55]}  cxd6 {[%clk 0:02:52]} 9. Nf3 {[%clk 0:02:56]}  Nc6 {[%clk 0:02:51]} 10. exd6 {[%clk 0:02:55]}  Bxd6 {[%clk 0:02:50]} 11. Bd3 {[%clk 0:02:55]}  h6 {[%clk 0:02:49]} 12. O-O {[%clk 0:02:55]}  Ne7 {[%clk 0:02:49]} 13. Re1 {[%clk 0:02:51]}  Qc7 {[%clk 0:02:44]} 14. Bd2 {[%clk 0:02:51]}  b6 {[%clk 0:02:44]} 15. Ne5 {[%clk 0:02:42]}  O-O {[%clk 0:02:42]} 16. Qg4 {[%clk 0:02:37]}  Nf5 {[%clk 0:02:33]} 17. a4 {[%clk 0:02:26]}  Rd8 {[%clk 0:02:07]} 18. h4 {[%clk 0:02:09]}  Kh8 {[%clk 0:01:57]} 19. h5 {[%clk 0:02:06]}  a6 {[%clk 0:01:11]} 20. Rab1 {[%clk 0:01:56]}  Ra7 {[%clk 0:01:09]} 21. Be4 {[%clk 0:01:40]}  Bxe5 {[%clk 0:01:06]} 22. Bxf5 {[%clk 0:01:04]}  exf5 {[%clk 0:01:06]} 23. Qf3 {[%clk 0:00:47]}  Bd6 {[%clk 0:01:03]} 24. Re2 {[%clk 0:00:47]}  Be6 {[%clk 0:00:59]} 25. Rbe1 {[%clk 0:00:44]}  Raa8 {[%clk 0:00:56]} 26. d5 {[%clk 0:00:44]}  Bxd5 {[%clk 0:00:55]} 27. Qxf5 {[%clk 0:00:44]}  Be6 {[%clk 0:00:54]} 28. Qf3 {[%clk 0:00:41]}  Rac8 {[%clk 0:00:50]} 29. Bxh6 {[%clk 0:00:41]}  Qxc3 {[%clk 0:00:43]} 30. Re3 {[%clk 0:00:37]}  Qf6 {[%clk 0:00:42]} 31. Qxf6 {[%clk 0:00:26]}  gxf6 {[%clk 0:00:43]} 32. R3e2 {[%clk 0:00:17]}  Kh7 {[%clk 0:00:42]} 33. Be3 {[%clk 0:00:17]}  b5 {[%clk 0:00:42]} 34. axb5 {[%clk 0:00:17]}  axb5 {[%clk 0:00:43]} 35. Rb2 {[%clk 0:00:15]}  b4 {[%clk 0:00:43]} 36. Reb1 {[%clk 0:00:16]}  b3 {[%clk 0:00:43]} 0-1


[Site "https://www.chess.com"]